[Event "Open international de Salon de Provence"]
[Site "Salon de Provence, France"]
[Date "2024.07.09"]
[Round "6.6"]
[White "Tarisse, Mateo"]
[Black "Fanget, Sullys"]
[Result "1-0"]
[WhiteElo "1636"]
[BlackElo "1559"]
[PlyCount "103"]
[EventDate "2024.??.??"]
[TimeControl "1"]

1. Nf3 {[%emt 0:00:00]} c6 {[%emt 0:00:00]} 2. c4 {[%emt 0:00:00]} Nf6 {
[%emt 0:00:00]} 3. g3 {[%emt 0:00:00]} d5 {[%emt 0:00:00]} 4. b3 {[%emt 0:00:
00]} Bf5 {[%emt 0:00:00]} 5. Bg2 {[%emt 0:00:00]} e6 {[%emt 0:00:00]} 6. Bb2 {
[%emt 0:00:00]} Nbd7 {[%emt 0:00:00]} 7. d3 {[%emt 0:00:00]} dxc4 {[%emt 0:00:
00]} 8. bxc4 {[%emt 0:00:00]} Qb6 {[%emt 0:00:00]} 9. Qc2 {[%emt 0:00:00]} Bc5
{[%emt 0:00:00]} 10. O-O {[%emt 0:00:00]} O-O {[%emt 0:00:00]} 11. h3 {[%emt 0:
00:00]} h6 {[%emt 0:00:00]} 12. Nbd2 {[%emt 0:00:00]} Qc7 {[%emt 0:00:00]} 13.
Nb3 {[%emt 0:00:00]} Bd6 {[%emt 0:00:00]} 14. Bc3 {[%emt 0:00:00]} Bxg3 {
[%emt 0:00:00]} 15. fxg3 {[%emt 0:00:00]} Qxg3 {[%emt 0:00:00]} 16. Be1 {
[%emt 0:00:00]} Qc7 {[%emt 0:00:00]} 17. Qd2 {[%emt 0:00:00]} Nh5 {[%emt 0:00:
00]} 18. Nh4 {[%emt 0:00:00]} Bh7 {[%emt 0:00:00]} 19. d4 {[%emt 0:00:00]} Ndf6
{[%emt 0:00:00]} 20. e3 {[%emt 0:00:00]} g5 {[%emt 0:00:00]} 21. Nf3 {[%emt 0:
00:00]} Ne4 {[%emt 0:00:00]} 22. Qd1 {[%emt 0:00:00]} Nhg3 {[%emt 0:00:00]} 23.
Bxg3 {[%emt 0:00:00]} Qxg3 {[%emt 0:00:00]} 24. Qe1 {[%emt 0:00:00]} Qc7 {
[%emt 0:00:00]} 25. Ne5 {[%emt 0:00:00]} f6 {[%emt 0:00:00]} 26. Bxe4 {[%emt 0:
00:00]} Bxe4 {[%emt 0:00:00]} 27. Ng4 {[%emt 0:00:00]} Kg7 {[%emt 0:00:00]} 28.
Nd2 {[%emt 0:00:00]} Bd3 {[%emt 0:00:00]} 29. Rf3 {[%emt 0:00:00]} Bg6 {
[%emt 0:00:00]} 30. Qg3 {[%emt 0:00:00]} Qxg3+ {[%emt 0:00:00]} 31. Rxg3 {
[%emt 0:00:00]} h5 {[%emt 0:00:00]} 32. Nf2 {[%emt 0:00:00]} Rad8 {[%emt 0:00:
00]} 33. Nb3 {[%emt 0:00:00]} b6 {[%emt 0:00:00]} 34. c5 {[%emt 0:00:00]} Rf7 {
[%emt 0:00:00]} 35. Rc1 {[%emt 0:00:00]} Rc7 {[%emt 0:00:00]} 36. Nd1 {[%emt 0:
00:00]} h4 {[%emt 0:00:00]} 37. Rg2 {[%emt 0:00:00]} Be4 {[%emt 0:00:00]} 38.
Rd2 {[%emt 0:00:00]} Kh6 {[%emt 0:00:00]} 39. Nc3 {[%emt 0:00:00]} Bf5 {
[%emt 0:00:00]} 40. Kg2 {[%emt 0:00:00]} g4 {[%emt 0:00:00]} 41. hxg4 {[%emt 0:
00:00]} Rg8 {[%emt 0:00:00]} 42. Rg1 {[%emt 0:00:00]} Rxg4+ {[%emt 0:00:00]}
43. Kh2 {[%emt 0:00:00]} Rxg1 {[%emt 0:00:00]} 44. Kxg1 {[%emt 0:00:00]} h3 {
[%emt 0:00:00]} 45. Rf2 {[%emt 0:04:08]} Rg7+ {[%emt 0:00:00]} 46. Kh2 {
[%emt 0:00:00]} Rg4 {[%emt 0:00:00]} 47. Ne2 {[%emt 0:00:00]} Re4 {[%emt 0:00:
00]} 48. Ng3 {[%emt 0:00:00]} Kg5 {[%emt 0:00:00]} 49. Nxe4+ {[%emt 0:00:00]}
Bxe4 {[%emt 0:00:00]} 50. Kxh3 {[%emt 0:00:00]} Bd5 {[%emt 0:00:00]} 51. Kg3 {
[%emt 0:00:00]} f5 {[%emt 0:00:00]} 52. Rb2 {[%emt 0:00:00]} 1-0

[Event "Open international de Salon de Provence"]
[Site "Salon de Provence, France"]
[Date "2024.07.09"]
[Round "6.7"]
[White "Metzger, Raphael"]
[Black "Hamon, Alexandre"]
[Result "1-0"]
[WhiteElo "1601"]
[BlackElo "1602"]
[PlyCount "53"]
[EventDate "2024.??.??"]
[TimeControl "1"]

1. e4 {[%emt 0:00:00]} c6 {[%emt 0:00:00]} 2. d4 {[%emt 0:00:00]} d5 {[%emt 0:
00:00]} 3. f3 {[%emt 0:00:00]} dxe4 {[%emt 0:00:00]} 4. fxe4 {[%emt 0:00:00]}
Nf6 {[%emt 0:00:00]} 5. e5 {[%emt 0:00:00]} Nd5 {[%emt 0:00:00]} 6. c4 {
[%emt 0:00:00]} Nb6 {[%emt 0:00:00]} 7. Nc3 {[%emt 0:00:00]} Bf5 {[%emt 0:00:
00]} 8. Bd3 {[%emt 0:00:00]} Bxd3 {[%emt 0:00:00]} 9. Qxd3 {[%emt 0:00:00]} e6
{[%emt 0:00:00]} 10. a3 {[%emt 0:00:00]} Be7 {[%emt 0:00:00]} 11. Nf3 {[%emt 0:
00:00]} Na6 {[%emt 0:00:00]} 12. Be3 {[%emt 0:00:00]} Nc7 {[%emt 0:00:00]} 13.
Rd1 {[%emt 0:00:00]} O-O {[%emt 0:00:00]} 14. O-O {[%emt 0:00:00]} f6 {[%emt 0:
00:00]} 15. exf6 {[%emt 0:00:00]} Rxf6 {[%emt 0:00:00]} 16. Ne4 {[%emt 0:00:00]
} Rg6 {[%emt 0:00:00]} 17. Ne5 {[%emt 0:00:00]} Ne8 {[%emt 0:00:00]} 18. Nxg6 {
[%emt 0:00:00]} hxg6 {[%emt 0:00:00]} 19. Rf2 {[%emt 0:00:00]} Nf6 {[%emt 0:00:
00]} 20. Ng5 {[%emt 0:00:00]} Ng4 {[%emt 0:00:00]} 21. Qxg6 {[%emt 0:00:00]}
Bxg5 {[%emt 0:00:00]} 22. Bxg5 {[%emt 0:00:00]} Qe8 {[%emt 0:00:00]} 23. Qxe8+
{[%emt 0:00:00]} Rxe8 {[%emt 0:00:00]} 24. Rc2 {[%emt 0:00:00]} Rf8 {[%emt 0:
00:00]} 25. Rf1 {[%emt 0:00:00]} Rf5 {[%emt 0:00:00]} 26. Rff2 Rf4 {[%emt 0:00:
00]} 27. Rxf4 {[%emt 0:00:00]} 1-0

[Event "Open international de Salon de Provence"]
[Site "Salon de Provence, France"]
[Date "2024.07.09"]
[Round "6.8"]
[White "Maltsev, Nikita"]
[Black "Gautier Mazauric, Thomas"]
[Result "1-0"]
[WhiteElo "1552"]
[BlackElo "1638"]
[PlyCount "67"]
[EventDate "2024.??.??"]
[TimeControl "1"]

1. d4 {[%emt 0:00:00]} Nf6 {[%emt 0:00:00]} 2. c4 {[%emt 0:00:00]} e6 {[%emt 0:
00:00]} 3. Nc3 {[%emt 0:00:00]} Bb4 {[%emt 0:00:00]} 4. Nf3 {[%emt 0:00:00]}
O-O {[%emt 0:00:00]} 5. e3 {[%emt 0:00:00]} b6 {[%emt 0:00:00]} 6. Bd3 {
[%emt 0:00:00]} Bb7 {[%emt 0:00:00]} 7. a3 {[%emt 0:00:00]} Bxc3+ {[%emt 0:00:
00]} 8. bxc3 {[%emt 0:00:00]} Ne4 {[%emt 0:00:00]} 9. Qc2 {[%emt 0:00:00]} f5 {
[%emt 0:00:00]} 10. Bb2 {[%emt 0:00:00]} d6 {[%emt 0:00:00]} 11. h4 {[%emt 0:
00:00]} Nd7 {[%emt 0:00:00]} 12. Ke2 {[%emt 0:00:00]} Ndf6 {[%emt 0:00:00]} 13.
Nh2 {[%emt 0:00:00]} Qe8 {[%emt 0:00:00]} 14. Rhg1 {[%emt 0:00:00]} Qh5+ {
[%emt 0:00:00]} 15. Nf3 {[%emt 0:00:00]} Rae8 {[%emt 0:00:00]} 16. Raf1 {
[%emt 0:00:00]} Ng4 {[%emt 0:00:00]} 17. Kd1 {[%emt 0:00:00]} Nh2 {[%emt 0:00:
00]} 18. Re1 {[%emt 0:00:00]} Nxf3 {[%emt 0:00:00]} 19. gxf3 {[%emt 0:00:00]}
Qxf3+ {[%emt 0:00:00]} 20. Be2 {[%emt 0:00:00]} Nxf2+ {[%emt 0:00:00]} 21. Kd2
{[%emt 0:00:00]} Qe4 {[%emt 0:00:00]} 22. Qa4 {[%emt 0:00:00]} f4 {[%emt 0:00:
00]} 23. exf4 {[%emt 0:00:00]} Qxf4+ {[%emt 0:00:00]} 24. Kc2 {[%emt 0:00:00]}
Be4+ {[%emt 0:00:00]} 25. Kb3 {[%emt 0:00:00]} Qd2 {[%emt 0:00:00]} 26. Qd7 {
[%emt 0:00:00]} g6 {[%emt 0:00:00]} 27. h5 {[%emt 0:00:00]} Nd3 {[%emt 0:00:00]
} 28. Bxd3 {[%emt 0:00:00]} Qxd3 {[%emt 0:00:00]} 29. h6 {[%emt 0:00:00]} Re7 {
[%emt 0:00:00]} 30. Qxe7 {[%emt 0:00:00]} Rf7 {[%emt 0:00:00]} 31. Qe8+ {
[%emt 0:00:00]} Rf8 {[%emt 0:00:00]} 32. Qxe6+ {[%emt 0:00:00]} Kh8 {[%emt 0:
00:00]} 33. Qe7 {[%emt 0:00:00]} Qc2+ {[%emt 0:00:00]} 34. Ka2 {[%emt 0:00:00]}
1-0

[Event "Open international de Salon de Provence"]
[Site "Salon de Provence, France"]
[Date "2024.07.10"]
[Round "7.1"]
[White "Nikolov, Momchil"]
[Black "Gusain, Himal"]
[Result "1/2-1/2"]
[WhiteElo "2460"]
[BlackElo "2490"]
[PlyCount "111"]
[EventDate "2024.??.??"]
[TimeControl "1"]

1. d4 {[%emt 0:00:00]} d5 {[%emt 0:00:00]} 2. c4 {[%emt 0:00:00]} e6 {[%emt 0:
00:00]} 3. Nf3 {[%emt 0:00:00]} Nf6 {[%emt 0:00:00]} 4. Nc3 {[%emt 0:00:00]}
Be7 {[%emt 0:00:00]} 5. Bg5 {[%emt 0:00:00]} O-O {[%emt 0:00:00]} 6. e3 {
[%emt 0:00:00]} h6 {[%emt 0:00:00]} 7. Bxf6 {[%emt 0:00:00]} Bxf6 {[%emt 0:00:
00]} 8. Qc2 {[%emt 0:00:00]} b6 {[%emt 0:00:00]} 9. cxd5 {[%emt 0:00:00]} exd5
{[%emt 0:00:00]} 10. Be2 {[%emt 0:00:00]} Be6 {[%emt 0:00:00]} 11. O-O {
[%emt 0:00:00]} c6 {[%emt 0:00:00]} 12. Rac1 {[%emt 0:00:00]} Be7 {[%emt 0:00:
00]} 13. e4 {[%emt 0:00:00]} dxe4 {[%emt 0:00:00]} 14. Qxe4 {[%emt 0:00:00]}
Bd5 {[%emt 0:00:00]} 15. Nxd5 {[%emt 0:00:00]} cxd5 {[%emt 0:00:00]} 16. Qf5 {
[%emt 0:00:00]} g6 {[%emt 0:00:00]} 17. Qh3 {[%emt 0:00:00]} Kg7 {[%emt 0:00:
00]} 18. Ne5 {[%emt 0:00:00]} Bf6 {[%emt 0:00:00]} 19. f4 {[%emt 0:00:00]} a6 {
[%emt 0:00:00]} 20. Qb3 {[%emt 0:00:00]} Qd6 {[%emt 0:00:00]} 21. Bf3 {[%emt 0:
00:00]} Rd8 {[%emt 0:00:00]} 22. Rc2 {[%emt 0:00:00]} Ra7 {[%emt 0:00:00]} 23.
Rfc1 {[%emt 0:00:00]} Re7 {[%emt 0:00:00]} 24. a3 {[%emt 0:00:00]} g5 {[%emt 0:
00:00]} 25. g3 {[%emt 0:00:00]} Bxe5 {[%emt 0:00:00]} 26. fxe5 {[%emt 0:00:00]}
Qe6 {[%emt 0:00:00]} 27. Rf2 {[%emt 0:00:00]} Nc6 {[%emt 0:00:00]} 28. Qd1 {
[%emt 0:00:00]} f5 {[%emt 0:00:00]} 29. exf6+ {[%emt 0:00:00]} Qxf6 {[%emt 0:
00:00]} 30. Bh5 {[%emt 0:00:00]} Qd6 {[%emt 0:00:00]} 31. Qd3 {[%emt 0:00:00]}
Rf8 {[%emt 0:00:00]} 32. Rxf8 {[%emt 0:00:00]} Kxf8 {[%emt 0:00:00]} 33. Qxa6 {
[%emt 0:00:00]} Nxd4 {[%emt 0:00:00]} 34. Qd3 {[%emt 0:00:00]} Nc6 {[%emt 0:00:
00]} 35. Qf5+ {[%emt 0:00:00]} Kg7 {[%emt 0:00:00]} 36. Rf1 {[%emt 0:00:00]}
Rc7 {[%emt 0:00:00]} 37. Bd1 {[%emt 0:00:00]} Nd8 {[%emt 0:00:00]} 38. Bb3 {
[%emt 0:00:00]} d4 {[%emt 0:00:00]} 39. Bc2 {[%emt 0:00:00]} Rf7 {[%emt 0:00:
00]} 40. Qh7+ {[%emt 0:00:00]} Kf8 {[%emt 0:00:00]} 41. Qh8+ {[%emt 0:00:00]}
Ke7 {[%emt 0:00:00]} 42. Re1+ {[%emt 0:00:00]} Kd7 {[%emt 0:00:00]} 43. Rd1 {
[%emt 0:00:00]} Rf6 {[%emt 0:00:00]} 44. Qh7+ {[%emt 0:00:00]} Kc8 {[%emt 0:00:
00]} 45. Rc1 {[%emt 0:00:00]} Rf7 {[%emt 0:00:00]} 46. Bf5+ {[%emt 0:00:00]}
Kb7 {[%emt 0:00:00]} 47. Be4+ {[%emt 0:00:00]} Ka6 {[%emt 0:00:00]} 48. Bd3+ {
[%emt 0:00:00]} Ka7 {[%emt 0:00:00]} 49. Qe4 {[%emt 0:00:00]} Re7 {[%emt 0:00:
00]} 50. Qf5 {[%emt 0:00:00]} Qe5 {[%emt 0:00:00]} 51. Qxe5 {[%emt 0:00:00]}
Rxe5 {[%emt 0:00:00]} 52. Rc7+ {[%emt 0:00:00]} Kb8 {[%emt 0:00:00]} 53. Rd7 {
[%emt 0:00:00]} Nc6 {[%emt 0:00:00]} 54. Ba6 {[%emt 0:00:00]} Re3 {[%emt 0:00:
00]} 55. Rb7+ {[%emt 0:00:00]} Kc8 {[%emt 0:00:00]} 56. Rxb6+ {[%emt 0:00:00]}
1/2-1/2

[Event "Open international de Salon de Provence"]
[Site "Salon de Provence, France"]
[Date "2024.07.10"]
[Round "7.2"]
[White "Enchev, Ivajlo"]
[Black "Philippe, Guillaume"]
[Result "1/2-1/2"]
[WhiteElo "2416"]
[BlackElo "2359"]
[PlyCount "42"]
[EventDate "2024.??.??"]
[TimeControl "1"]

1. d4 {[%emt 0:00:00]} Nf6 {[%emt 0:00:00]} 2. c4 {[%emt 0:00:00]} e6 {[%emt 0:
00:00]} 3. Nf3 {[%emt 0:00:00]} Bb4+ {[%emt 0:00:00]} 4. Nbd2 {[%emt 0:00:00]}
O-O {[%emt 0:00:00]} 5. a3 {[%emt 0:00:00]} Be7 {[%emt 0:00:00]} 6. e4 {
[%emt 0:00:00]} d6 {[%emt 0:00:00]} 7. Bd3 {[%emt 0:00:00]} Nfd7 {[%emt 0:00:
00]} 8. O-O {[%emt 0:00:00]} e5 {[%emt 0:00:00]} 9. Nb1 {[%emt 0:00:00]} exd4 {
[%emt 0:00:00]} 10. Nxd4 {[%emt 0:00:00]} Nc6 {[%emt 0:00:00]} 11. Be3 {
[%emt 0:00:00]} Bf6 {[%emt 0:00:00]} 12. Nxc6 {[%emt 0:00:00]} bxc6 {[%emt 0:
00:00]} 13. Nc3 {[%emt 0:00:00]} Re8 {[%emt 0:00:00]} 14. Rc1 {[%emt 0:00:00]}
a5 {[%emt 0:00:00]} 15. Qc2 {[%emt 0:00:00]} Ne5 {[%emt 0:00:00]} 16. Be2 {
[%emt 0:00:00]} Ng4 {[%emt 0:00:00]} 17. Bxg4 {[%emt 0:00:00]} Bxg4 {[%emt 0:
00:00]} 18. f3 {[%emt 0:00:00]} Be6 {[%emt 0:00:00]} 19. b3 {[%emt 0:00:00]}
Qb8 {[%emt 0:00:00]} 20. Rfd1 {[%emt 0:00:00]} Qb7 {[%emt 0:00:00]} 21. Rd3 {
[%emt 0:00:00]} c5 {[%emt 0:00:00]} 1/2-1/2

[Event "Open international de Salon de Provence"]
[Site "Salon de Provence, France"]
[Date "2024.07.10"]
[Round "7.3"]
[White "Peric, Slavisa"]
[Black "Dimitrov, Radoslav"]
[Result "0-1"]
[WhiteElo "1990"]
[BlackElo "2480"]
[PlyCount "66"]
[EventDate "2024.??.??"]
[TimeControl "1"]

1. d4 {[%emt 0:00:09]} Nf6 2. Nf3 c5 3. d5 g6 4. Nc3 Bg7 5. e4 O-O 6. a4 {
[%emt 0:00:00]} d6 {[%emt 0:00:00]} 7. h3 {[%emt 0:00:00]} e6 {[%emt 0:00:00]}
8. Be2 {[%emt 0:00:00]} exd5 {[%emt 0:00:00]} 9. exd5 {[%emt 0:00:00]} Na6 {
[%emt 0:00:00]} 10. Bf4 {[%emt 0:00:00]} Nb4 {[%emt 0:00:00]} 11. O-O {[%emt 0:
00:00]} Bf5 {[%emt 0:00:00]} 12. Rc1 {[%emt 0:00:00]} Ne4 {[%emt 0:00:00]} 13.
g4 {[%emt 0:00:00]} Bxc3 {[%emt 0:00:00]} 14. gxf5 {[%emt 0:00:00]} Bxb2 {
[%emt 0:00:00]} 15. fxg6 {[%emt 0:00:00]} fxg6 {[%emt 0:00:00]} 16. Bh6 {
[%emt 0:00:00]} Nc3 {[%emt 0:00:00]} 17. Qd2 {[%emt 0:00:00]} Bxc1 {[%emt 0:00:
00]} 18. Rxc1 {[%emt 0:00:00]} Nxe2+ {[%emt 0:00:00]} 19. Qxe2 {[%emt 0:00:00]}
Qe8 {[%emt 0:00:00]} 20. Qd1 {[%emt 0:00:00]} Rf5 {[%emt 0:00:00]} 21. c4 {
[%emt 0:00:00]} Qe4 {[%emt 0:00:00]} 22. Rc3 {[%emt 0:00:00]} Nc2 {[%emt 0:00:
00]} 23. Qxc2 {[%emt 0:00:00]} Qxc2 {[%emt 0:00:00]} 24. Rxc2 {[%emt 0:00:00]}
Rxf3 {[%emt 0:00:00]} 25. Kg2 {[%emt 0:00:00]} Ra3 {[%emt 0:00:00]} 26. Re2 {
[%emt 0:00:00]} Kf7 {[%emt 0:00:00]} 27. Re6 {[%emt 0:00:00]} Rd8 {[%emt 0:00:
00]} 28. Bf4 {[%emt 0:00:00]} Rxa4 {[%emt 0:00:00]} 29. Bxd6 {[%emt 0:00:00]}
Rxc4 {[%emt 0:00:00]} 30. Re7+ {[%emt 0:00:00]} Kg8 {[%emt 0:00:00]} 31. Bg3 {
[%emt 0:00:00]} Rxd5 {[%emt 0:00:00]} 32. Rxb7 {[%emt 0:00:00]} a5 {[%emt 0:00:
00]} 33. Ra7 {[%emt 0:00:00]} a4 {[%emt 0:00:00]} 0-1

[Event "Open international de Salon de Provence"]
[Site "Salon de Provence, France"]
[Date "2024.07.10"]
[Round "7.4"]
[White "Petrosyan, Armen"]
[Black "Lalic, Bogdan"]
[Result "1/2-1/2"]
[WhiteElo "2358"]
[BlackElo "2358"]
[PlyCount "41"]
[EventDate "2024.??.??"]
[TimeControl "1"]

1. e4 {[%emt 0:00:00]} e5 {[%emt 0:00:00]} 2. Nf3 {[%emt 0:00:00]} Nc6 {
[%emt 0:00:00]} 3. Bb5 {[%emt 0:00:00]} Nf6 {[%emt 0:00:27]} 4. O-O {[%emt 0:
00:00]} Nxe4 {[%emt 0:00:00]} 5. d4 {[%emt 0:00:00]} Nd6 {[%emt 0:00:00]} 6.
Bxc6 {[%emt 0:00:00]} dxc6 {[%emt 0:00:00]} 7. dxe5 {[%emt 0:00:00]} Nf5 {
[%emt 0:00:00]} 8. Qxd8+ {[%emt 0:00:00]} Kxd8 {[%emt 0:00:00]} 9. Nc3 {
[%emt 0:00:00]} Ke8 {[%emt 0:00:00]} 10. Ne2 {[%emt 0:00:00]} Ne7 {[%emt 0:00:
00]} 11. h3 {[%emt 0:00:00]} Ng6 {[%emt 0:00:00]} 12. Nf4 {[%emt 0:00:00]} Nxf4
{[%emt 0:00:00]} 13. Bxf4 {[%emt 0:00:00]} c5 {[%emt 0:00:00]} 14. e6 {[%emt 0:
00:00]} Bxe6 {[%emt 0:00:00]} 15. Bxc7 {[%emt 0:00:00]} f6 {[%emt 0:00:00]} 16.
Rfd1 {[%emt 0:00:00]} Be7 {[%emt 0:00:00]} 17. a3 {[%emt 0:00:00]} Kf7 {
[%emt 0:00:00]} 18. Bd6 {[%emt 0:00:00]} Bxd6 {[%emt 0:00:00]} 19. Rxd6 {
[%emt 0:00:00]} Rhd8 {[%emt 0:00:00]} 20. Rad1 {[%emt 0:00:00]} Rxd6 {[%emt 0:
00:00]} 21. Rxd6 {[%emt 0:00:00]} 1/2-1/2

[Event "Open international de Salon de Provence"]
[Site "Salon de Provence, France"]
[Date "2024.07.10"]
[Round "7.5"]
[White "Rival, None"]
[Black "Maltsev, Nikita"]
[Result "1-0"]
[WhiteElo "1640"]
[BlackElo "1552"]
[PlyCount "97"]
[EventDate "2024.??.??"]
[TimeControl "1"]

1. d4 {[%emt 0:00:00]} d5 {[%emt 0:00:00]} 2. c4 {[%emt 0:00:00]} e6 {[%emt 0:
00:00]} 3. Nc3 {[%emt 0:00:00]} Nf6 {[%emt 0:00:00]} 4. cxd5 {[%emt 0:00:00]}
exd5 {[%emt 0:00:00]} 5. Bg5 {[%emt 0:00:00]} c6 {[%emt 0:00:00]} 6. e3 {
[%emt 0:00:00]} Be7 {[%emt 0:00:00]} 7. Qc2 {[%emt 0:00:00]} Nbd7 {[%emt 0:00:
00]} 8. Bd3 {[%emt 0:00:00]} h6 {[%emt 0:00:00]} 9. Bh4 {[%emt 0:00:00]} b6 {
[%emt 0:00:00]} 10. Nge2 {[%emt 0:00:00]} Bb7 {[%emt 0:00:00]} 11. O-O {
[%emt 0:00:00]} Qc7 {[%emt 0:00:00]} 12. Bg3 {[%emt 0:00:00]} Bd6 {[%emt 0:00:
00]} 13. Nb5 {[%emt 0:00:00]} cxb5 {[%emt 0:00:00]} 14. Qxc7 {[%emt 0:00:00]}
Bxc7 {[%emt 0:00:00]} 15. Bxc7 {[%emt 0:00:00]} a6 {[%emt 0:00:00]} 16. Rac1 {
[%emt 0:00:00]} Ke7 {[%emt 0:00:00]} 17. Ng3 {[%emt 0:00:00]} g6 {[%emt 0:00:
00]} 18. Rc2 {[%emt 0:00:00]} Rac8 {[%emt 0:00:00]} 19. Rfc1 {[%emt 0:00:00]}
h5 {[%emt 0:00:00]} 20. h4 {[%emt 0:00:00]} Rhe8 {[%emt 0:00:00]} 21. Ne2 {
[%emt 0:00:00]} Ng4 {[%emt 0:00:00]} 22. Bg3 {[%emt 0:00:00]} Rxc2 {[%emt 0:00:
00]} 23. Rxc2 {[%emt 0:00:00]} Rc8 {[%emt 0:00:00]} 24. Rxc8 {[%emt 0:00:00]}
Bxc8 {[%emt 0:00:00]} 25. Bc7 {[%emt 0:00:00]} Ngf6 {[%emt 0:00:00]} 26. Nc3 {
[%emt 0:00:00]} Ke6 {[%emt 0:00:00]} 27. f3 {[%emt 0:00:00]} Ne8 {[%emt 0:00:
00]} 28. Bh2 {[%emt 0:00:00]} Nd6 {[%emt 0:00:00]} 29. Bxd6 {[%emt 0:00:00]}
Kxd6 {[%emt 0:00:00]} 30. Kf2 {[%emt 0:00:00]} b4 {[%emt 0:00:00]} 31. Ne2 {
[%emt 0:00:00]} a5 {[%emt 0:00:00]} 32. Kg3 {[%emt 0:00:00]} Nf8 {[%emt 0:00:
00]} 33. Bb5 {[%emt 0:00:00]} Bd7 {[%emt 0:00:00]} 34. Bxd7 {[%emt 0:00:00]}
Nxd7 {[%emt 0:00:00]} 35. Kf4 {[%emt 0:00:00]} f6 {[%emt 0:00:00]} 36. g4 {
[%emt 0:00:00]} hxg4 {[%emt 0:00:00]} 37. fxg4 {[%emt 0:00:00]} b5 {[%emt 0:00:
00]} 38. h5 {[%emt 0:00:00]} Ke7 {[%emt 0:00:00]} 39. hxg6 {[%emt 0:00:00]} Nb6
{[%emt 0:00:00]} 40. b3 {[%emt 0:00:00]} a4 {[%emt 0:00:00]} 41. Kf5 {[%emt 0:
00:00]} axb3 {[%emt 0:00:00]} 42. axb3 {[%emt 0:00:00]} Nd7 {[%emt 0:00:00]}
43. Nf4 {[%emt 0:00:00]} Nb6 {[%emt 0:00:00]} 44. Nh5 {[%emt 0:00:00]} Nd7 {
[%emt 0:00:00]} 45. g7 {[%emt 0:00:00]} Kf7 {[%emt 0:00:00]} 46. g8=Q+ {
[%emt 0:00:00]} Kxg8 {[%emt 0:00:00]} 47. Nxf6+ {[%emt 0:00:00]} Nxf6 {[%emt 0:
00:00]} 48. Kxf6 {[%emt 0:00:00]} Kh8 {[%emt 0:00:00]} 49. Ke5 {[%emt 0:00:00]}
1-0

[Event "Open international de Salon de Provence"]
[Site "Salon de Provence, France"]
[Date "2024.07.10"]
[Round "7.6"]
[White "Tarisse, Mateo"]
[Black "Metzger, Raphael"]
[Result "1-0"]
[WhiteElo "1636"]
[BlackElo "1601"]
[PlyCount "87"]
[EventDate "2024.??.??"]
[TimeControl "1"]

1. Nf3 {[%emt 0:00:00]} Nf6 {[%emt 0:00:00]} 2. c4 {[%emt 0:00:00]} e6 {
[%emt 0:00:00]} 3. g3 {[%emt 0:00:00]} d5 {[%emt 0:00:00]} 4. b3 {[%emt 0:00:
00]} Be7 {[%emt 0:00:00]} 5. Bb2 {[%emt 0:00:00]} O-O {[%emt 0:00:00]} 6. Bg2 {
[%emt 0:00:00]} c5 {[%emt 0:00:00]} 7. cxd5 {[%emt 0:00:00]} exd5 {[%emt 0:00:
00]} 8. d4 {[%emt 0:00:00]} Nbd7 {[%emt 0:00:00]} 9. Nc3 {[%emt 0:00:00]} Nb6 {
[%emt 0:00:00]} 10. dxc5 {[%emt 0:00:00]} Bxc5 {[%emt 0:00:00]} 11. O-O {
[%emt 0:00:00]} Qe7 {[%emt 0:00:00]} 12. Qc2 {[%emt 0:00:00]} Bg4 {[%emt 0:00:
00]} 13. Rfd1 {[%emt 0:00:00]} Rac8 {[%emt 0:00:00]} 14. Nd4 {[%emt 0:00:00]}
Rfe8 {[%emt 0:00:00]} 15. Kf1 {[%emt 0:00:00]} Ne4 {[%emt 0:00:00]} 16. f3 {
[%emt 0:00:00]} Nxc3 {[%emt 0:00:00]} 17. Bxc3 {[%emt 0:00:00]} Bh5 {[%emt 0:
00:00]} 18. Nf5 {[%emt 0:00:00]} Qe6 {[%emt 0:00:00]} 19. Nd4 {[%emt 0:00:00]}
Bxd4 {[%emt 0:00:00]} 20. Rxd4 {[%emt 0:00:00]} Qc6 {[%emt 0:00:00]} 21. Rc1 {
[%emt 0:00:00]} Re3 {[%emt 0:00:00]} 22. Bd2 {[%emt 0:00:00]} Qxc2 {[%emt 0:00:
00]} 23. Rxc2 {[%emt 0:00:00]} Rxc2 {[%emt 0:00:00]} 24. Bxe3 {[%emt 0:00:00]}
Rxa2 {[%emt 0:00:00]} 25. Rb4 {[%emt 0:00:00]} Ra6 {[%emt 0:00:00]} 26. g4 {
[%emt 0:00:00]} Bg6 {[%emt 0:00:00]} 27. f4 {[%emt 0:00:00]} f6 {[%emt 0:00:00]
} 28. Bxb6 {[%emt 0:00:00]} Rxb6 {[%emt 0:00:00]} 29. Rxb6 {[%emt 0:00:00]}
axb6 {[%emt 0:00:00]} 30. Bxd5+ {[%emt 0:00:00]} Bf7 {[%emt 0:00:00]} 31. e4 {
[%emt 0:00:00]} Bxd5 {[%emt 0:00:00]} 32. exd5 {[%emt 0:00:00]} Kf7 {[%emt 0:
00:00]} 33. Ke2 {[%emt 0:00:00]} Ke7 {[%emt 0:00:00]} 34. Kd3 {[%emt 0:00:00]}
b5 {[%emt 0:00:00]} 35. f5 {[%emt 0:00:00]} Kd6 {[%emt 0:00:00]} 36. Kd4 {
[%emt 0:00:00]} b6 {[%emt 0:00:00]} 37. h3 {[%emt 0:00:00]} h5 {[%emt 0:00:00]}
38. gxh5 {[%emt 0:00:00]} b4 {[%emt 0:00:00]} 39. h4 {[%emt 0:00:00]} b5 {
[%emt 0:00:00]} 40. h6 {[%emt 0:00:00]} gxh6 {[%emt 0:00:00]} 41. h5 {[%emt 0:
00:00]} Ke7 {[%emt 0:00:00]} 42. Kc5 {[%emt 0:00:00]} Kd7 {[%emt 0:00:00]} 43.
Kxb5 {[%emt 0:00:00]} Kd6 {[%emt 0:00:00]} 44. Kc4 {[%emt 0:00:00]} 1-0

[Event "Open international de Salon de Provence"]
[Site "Salon de Provence, France"]
[Date "2024.07.10"]
[Round "7.7"]
[White "Verlingue, Brewen"]
[Black "Vrillet, Loan"]
[Result "0-1"]
[WhiteElo "1471"]
[BlackElo "1676"]
[PlyCount "46"]
[EventDate "2024.??.??"]
[TimeControl "1"]

1. d4 {[%emt 0:00:00]} d5 {[%emt 0:00:00]} 2. c4 {[%emt 0:00:00]} c6 {[%emt 0:
00:00]} 3. Nf3 {[%emt 0:00:00]} Nf6 {[%emt 0:00:00]} 4. g3 {[%emt 0:00:00]} e6
{[%emt 0:00:00]} 5. Bg2 {[%emt 0:00:00]} Bb4+ {[%emt 0:00:00]} 6. Bd2 {[%emt 0:
00:00]} Be7 {[%emt 0:00:00]} 7. O-O {[%emt 0:00:00]} O-O {[%emt 0:00:00]} 8.
Nc3 {[%emt 0:06:53]} Nbd7 {[%emt 0:00:00]} 9. Bf4 {[%emt 0:00:00]} Re8 {
[%emt 0:00:00]} 10. Nd2 {[%emt 0:00:00]} Nf8 {[%emt 0:00:00]} 11. e4 {[%emt 0:
00:00]} dxe4 {[%emt 0:00:00]} 12. Ndxe4 {[%emt 0:00:00]} Ng6 {[%emt 0:00:00]}
13. Bg5 {[%emt 0:00:00]} Nxe4 {[%emt 0:00:00]} 14. Bxe7 {[%emt 0:00:00]} Nxc3 {
[%emt 0:00:00]} 15. Bxd8 {[%emt 0:00:00]} Nxd1 {[%emt 0:00:00]} 16. Bg5 {
[%emt 0:00:00]} Nxb2 {[%emt 0:00:00]} 17. Rfc1 {[%emt 0:00:00]} Na4 {[%emt 0:
00:00]} 18. c5 {[%emt 0:00:00]} e5 {[%emt 0:00:00]} 19. Rab1 {[%emt 0:00:00]}
exd4 {[%emt 0:00:00]} 20. Rb4 {[%emt 0:00:00]} Nc3 {[%emt 0:00:00]} 21. Rxd4 {
[%emt 0:00:00]} Ne2+ {[%emt 0:00:00]} 22. Kh1 {[%emt 0:00:00]} Nxd4 {[%emt 0:
00:00]} 23. Rd1 {[%emt 0:00:00]} Ne6 {[%emt 0:00:00]} 0-1